[Event "Kragero Resort International 2022"]
[Site "Kragero"]
[Date "2022.02.25"]
[Round "6.14"]
[White "Alinasab, Mobina"]
[Black "Gharibyan, Mamikon"]
[Result "0-1"]
[ECO "B31"]
[WhiteElo "2325"]
[BlackElo "2479"]
[Annotator "ChessBase"]
[PlyCount "108"]
[EventDate "2022.02.23"]
[EventType "swiss"]
[EventCountry "NOR"]
[SourceTitle "playchess.com"]
[Source "ChessBase"]
[SourceQuality "1"]
[TimeControl "5400+30"]

1. e4 {[%emt 0:00:08]} c5 {[%emt 0:00:24]} 2. Nf3 {[%emt 0:00:07]} Nc6 {[%emt 0:00:12]} 3. Bb5 {[%emt 0:00:09]} g6 {[%emt 0:00:18]} 4. Bxc6 {[%emt 0:00:10]} dxc6 {[%emt 0:00:06]} 5. d3 {[%emt 0:00:06]} Bg7 {[%emt 0:02:25]} 6. h3 {[%emt 0:00:10]} Nf6 {[%emt 0:00:20]} 7. Nc3 {[%emt 0:00:10]} Nd7 {[%emt 0:00:17]} 8. O-O {[%emt 0:00:34]} e5 {[%emt 0:01:44]} 9. Be3 {[%emt 0:00:18]} b6 {[%emt 0:00:47]} 10. Qd2 {[%emt 0:02:36]} h6 {[%emt 0:00:09]} 11. Nh2 {[%emt 0:05:15]} Nf8 {[%emt 0:00:06]} 12. f4 {[%emt 0:01:41]} exf4 {[%emt 0:00:06]} 13. Bxf4 {[%emt 0:00:18]} Ne6 {[%emt 0:01:38]} 14. Bg3 {[%emt 0:01:51]} c4 {[%emt 0:08:34]} 15. e5 {[%emt 0:06:55]} cxd3 {[%emt 0:01:37]} 16. cxd3 {[%emt 0:00:49]} Qd4+ {[%emt 0:04:15]} 17. Kh1 {[%emt 0:03:09]} Nc5 {[%emt 0:00:49]} 18. Rad1 {[%emt 0:07:34]} Bf5 {[%emt 0:01:33]} 19. b4 {[%emt 0:03:54]} Qxb4 {[%emt 0:06:10]} 20. Ne4 {[%emt 0:01:26]} Qxd2 {[%emt 0:01:14]} 21. Nd6+ {[%emt 0:00:19]} Kd7 {[%emt 0:01:25]} 22. Rxd2 {[%emt 0:00:10]} Be6 {[%emt 0:00:27]} 23. d4 {[%emt 0:03:34]} Na4 {[%emt 0:02:17]} 24. Nxf7 {[%emt 0:00:09]} Rhf8 {[%emt 0:00:12]} 25. Nd6 {[%emt 0:00:07]} Rxf1+ {[%emt 0:00:47]} 26. Nxf1 {[%emt 0:00:07]} Nc3 {[%emt 0:00:58]} 27. a3 {[%emt 0:10:12]} Bf8 {[%emt 0:00:59]} 28. Rd3 {[%emt 0:05:04]} Bxd6 {[%emt 0:02:44]} 29. Rxc3 {[%emt 0:04:45]} Be7 {[%emt 0:00:05]} 30. Ne3 {[%emt 0:14:49]} b5 {[%emt 0:01:35]} 31. Ng4 {[%emt 0:04:09]} a5 {[%emt 0:01:32]} 32. Nf6+ {[%emt 0:00:21]} Bxf6 {[%emt 0:00:14]} 33. exf6 {[%emt 0:00:06]} b4 {[%emt 0:00:08]} 34. axb4 {[%emt 0:00:05]} axb4 {[%emt 0:00:16]} 35. Rc1 {[%emt 0:00:33]} b3 {[%emt 0:01:11]} 36. Rb1 {[%emt 0:01:04]} Bd5 {[%emt 0:00:58]} 37. Bf4 {[%emt 0:04:06]} Ra2 {[%emt 0:00:41]} 38. Kg1 {[%emt 0:03:32]} Rxg2+ {[%emt 0:02:12]} 39. Kf1 {[%emt 0:00:05]} g5 {[%emt 0:00:07]} 40. f7 {[%emt 0:00:52]} Ke7 {[%emt 0:03:28]} 41. Bd6+ {[%emt 0:02:20]} Kxf7 {[%emt 0:00:06]} 42. Rxb3 {[%emt 0:00:04]} Rd2 {[%emt 0:01:28]} 43. Rb7+ {[%emt 0:03:27]} Kg6 {[%emt 0:00:07]} 44. Be5 {[%emt 0:05:18]} Rd3 {[%emt 0:00:28]} 45. h4 {[%emt 0:02:25]} g4 {[%emt 0:02:19]} 46. Rg7+ {[%emt 0:03:14]} Kh5 {[%emt 0:00:30]} 47. Ke2 {[%emt 0:00:41]} Rf3 {[%emt 0:02:51]} 48. Rh7 {[%emt 0:03:36]} g3 {[%emt 0:02:29]} 49. Rg7 {[%emt 0:00:51]} Kxh4 {[%emt 0:00:18]} 50. Rg6 {[%emt 0:01:25]} h5 {[%emt 0:00:11]} 51. Bd6 {[%emt 0:00:33]} Kh3 {[%emt 0:00:37]} 52. Rg5 {[%emt 0:00:25]} h4 {[%emt 0:00:35]} 53. Bb4 {[%emt 0:00:40]} g2 {[%emt 0:00:42]} 54. Be1 {[%emt 0:00:19]} Rg3 {[%emt 0:00:29]} 0-1

[Event "Kragero Resort International 2022"]
[Site "Kragero"]
[Date "2022.02.25"]
[Round "6.15"]
[White "Nikolic, Vladan"]
[Black "Kjartansson, Gudmundur"]
[Result "1/2-1/2"]
[ECO "E09"]
[WhiteElo "2218"]
[BlackElo "2450"]
[Annotator "ChessBase"]
[PlyCount "103"]
[EventDate "2022.02.23"]
[EventType "swiss"]
[EventCountry "NOR"]
[SourceTitle "playchess.com"]
[Source "ChessBase"]
[SourceQuality "1"]
[TimeControl "5400+30"]

1. d4 {[%emt 0:00:03]} Nf6 {[%emt 0:00:30]} 2. c4 {[%emt 0:00:06]} e6 {[%emt 0:00:05]} 3. Nf3 {[%emt 0:00:15]} d5 {[%emt 0:00:14]} 4. g3 {[%emt 0:00:20]} Be7 {[%emt 0:00:19]} 5. Bg2 {[%emt 0:00:08]} O-O {[%emt 0:00:14]} 6. O-O {[%emt 0:00:07]} Nbd7 {[%emt 0:00:31]} 7. Qc2 {[%emt 0:01:56]} c6 {[%emt 0:00:14]} 8. Nbd2 {[%emt 0:01:02]} b6 {[%emt 0:00:42]} 9. e4 {[%emt 0:00:40]} dxc4 {[%emt 0:00:43]} 10. Nxc4 {[%emt 0:01:01]} Bb7 {[%emt 0:00:13]} 11. Rd1 {[%emt 0:05:22]} c5 {[%emt 0:00:44]} 12. e5 {[%emt 0:00:34]} Nd5 {[%emt 0:02:07]} 13. Qe4 {[%emt 0:06:06]} cxd4 {[%emt 0:03:08]} 14. Qg4 {[%emt 0:17:11]} Kh8 {[%emt 0:01:56]} 15. Bg5 {[%emt 0:07:53]} b5 {[%emt 0:14:48]} 16. Bxe7 {[%emt 0:05:15]} Qxe7 {[%emt 0:01:32]} 17. Na5 {[%emt 0:00:33]} Rab8 {[%emt 0:08:29]} 18. Qxd4 {[%emt 0:10:19]} N7b6 {[%emt 0:13:03]} 19. Rac1 {[%emt 0:08:39]} Rfd8 {[%emt 0:03:07]} 20. Qc5 {[%emt 0:02:08]} Qxc5 {[%emt 0:04:40]} 21. Rxc5 {[%emt 0:00:14]} a6 {[%emt 0:00:43]} 22. b3 {[%emt 0:04:46]} Kg8 {[%emt 0:03:10]} 23. Nd4 {[%emt 0:04:38]} g5 {[%emt 0:17:32]} 24. Ndc6 {[%emt 0:09:21]} Bxc6 {[%emt 0:00:15]} 25. Nxc6 {[%emt 0:00:06]} Rbc8 {[%emt 0:03:43]} 26. Bxd5 {[%emt 0:02:01]} Nxd5 {[%emt 0:00:09]} 27. Rcxd5 {[%emt 0:00:35]} exd5 {[%emt 0:02:54]} 28. Ne7+ {[%emt 0:00:06]} Kg7 {[%emt 0:02:26]} 29. Nxc8 {[%emt 0:00:06]} Rxc8 {[%emt 0:00:01]} 30. Rxd5 {[%emt 0:00:14]} Rc1+ {[%emt 0:05:58]} 31. Kg2 {[%emt 0:00:06]} Ra1 {[%emt 0:00:06]} 32. Rd2 {[%emt 0:02:46]} Kg6 {[%emt 0:02:54]} 33. Rd6+ {[%emt 0:03:08]} Kf5 {[%emt 0:00:15]} 34. e6 {[%emt 0:01:10]} fxe6 {[%emt 0:00:26]} 35. Rxa6 {[%emt 0:00:05]} g4 {[%emt 0:04:02]} 36. a4 {[%emt 0:03:01]} bxa4 {[%emt 0:01:21]} 37. Rxa4 {[%emt 0:00:40]} Rb1 {[%emt 0:00:36]} 38. Rf4+ {[%emt 0:00:30]} Kg5 {[%emt 0:00:14]} 39. Rb4 {[%emt 0:01:35]} Rb2 {[%emt 0:01:55]} 40. Rb5+ {[%emt 0:00:55]} Kf6 {[%emt 0:00:10]} 41. Rb7 {[%emt 0:00:58]} h5 {[%emt 0:00:24]} 42. b4 {[%emt 0:00:45]} e5 {[%emt 0:00:30]} 43. b5 {[%emt 0:00:27]} e4 {[%emt 0:00:06]} 44. Kf1 {[%emt 0:00:23]} e3 {[%emt 0:00:31]} 45. fxe3 {[%emt 0:00:11]} Kf5 {[%emt 0:00:19]} 46. b6 {[%emt 0:04:01]} Ke4 {[%emt 0:00:17]} 47. Re7+ {[%emt 0:00:20]} Kf3 {[%emt 0:00:16]} 48. Rf7+ {[%emt 0:00:05]} Kxe3 {[%emt 0:00:04]} 49. b7 {[%emt 0:00:56]} Rb1+ {[%emt 0:00:17]} 50. Kg2 {[%emt 0:00:05]} Rb2+ {[%emt 0:00:03]} 51. Kf1 {[%emt 0:00:11]} Rb1+ {[%emt 0:00:05]} 52. Kg2 {[%emt 0:00:05]} 1/2-1/2

[Event "Kragero Resort International 2022"]
[Site "Kragero"]
[Date "2022.02.25"]
[Round "6.16"]
[White "Injac, Teodora"]
[Black "Unneland, Mathias"]
[Result "1-0"]
[ECO "D45"]
[WhiteElo "2407"]
[BlackElo "2262"]
[Annotator "NA"]
[PlyCount "89"]
[EventDate "2022.02.23"]
[EventType "swiss"]
[EventCountry "NOR"]
[SourceTitle "playchess.com"]
[Source "ChessBase"]
[SourceQuality "1"]
[TimeControl "5400+30"]

1. d4 {[%emt 0:03:04]} Nf6 {[%emt 0:00:12]} 2. c4 {[%emt 0:00:17]} e6 {[%emt 0:00:39]} 3. Nf3 {[%emt 0:00:21]} d5 {[%emt 0:00:16]} 4. Nc3 {[%emt 0:00:11]} c6 {[%emt 0:00:40]} 5. e3 {[%emt 0:00:43]} Nbd7 {[%emt 0:00:14]} 6. Be2 {[%emt 0:00:46]} Bd6 {[%emt 0:00:57]} 7. O-O {[%emt 0:00:20]} O-O {[%emt 0:00:19]} 8. a4 {[%emt 0:00:35]} Ne4 {[%emt 0:06:20]} 9. Nxe4 {[%emt 0:06:45]} dxe4 {[%emt 0:00:07]} 10. Nd2 {[%emt 0:00:02]} f5 {[%emt 0:00:37]} 11. c5 {[%emt 0:13:32]} Bxh2+ {[%emt 0:26:30]} 12. Kxh2 {[%emt 0:00:05]} Qh4+ {[%emt 0:00:08]} 13. Kg1 {[%emt 0:00:02]} Rf6 {[%emt 0:00:10]} 14. f3 {[%emt 0:16:57]} Rh6 {[%emt 0:01:34]} 15. Bc4 {[%emt 0:01:34]} Nf6 {[%emt 0:01:19]} 16. Qe1 {[%emt 0:08:32]} Qh2+ {[%emt 0:01:09]} 17. Kf2 {[%emt 0:00:02]} exf3 {[%emt 0:04:14]} 18. Nxf3 {[%emt 0:02:07]} Ng4+ {[%emt 0:01:13]} 19. Ke2 {[%emt 0:00:09]} Qxg2+ {[%emt 0:00:23]} 20. Kd3 {[%emt 0:09:24]} Rh3 {[%emt 0:04:55]} 21. Qe2 {[%emt 0:01:21]} Qxe2+ {[%emt 0:03:35]} 22. Kxe2 {[%emt 0:00:17]} h6 {[%emt 0:00:22]} 23. Bd2 {[%emt 0:01:02]} g5 {[%emt 0:00:46]} 24. Rh1 {[%emt 0:03:28]} Rg3 {[%emt 0:00:27]} 25. Rag1 {[%emt 0:02:41]} Rxg1 {[%emt 0:00:09]} 26. Rxg1 {[%emt 0:00:47]} Kg7 {[%emt 0:00:34]} 27. Be1 {[%emt 0:01:44]} Bd7 {[%emt 0:03:04]} 28. Bg3 {[%emt 0:00:42]} Rf8 {[%emt 0:00:36]} 29. Bd6 {[%emt 0:01:05]} Re8 {[%emt 0:00:23]} 30. Bd3 {[%emt 0:03:14]} Kf6 {[%emt 0:00:57]} 31. Rh1 {[%emt 0:06:33]} Kg6 {[%emt 0:00:36]} 32. Rg1 {[%emt 0:04:38]} Kf6 {[%emt 0:00:24]} 33. Rxg4 {[%emt 0:01:10]} fxg4 {[%emt 0:00:10]} 34. Ne5 {[%emt 0:00:01]} Rd8 {[%emt 0:01:16]} 35. Nxg4+ {[%emt 0:00:20]} Kg7 {[%emt 0:00:18]} 36. Be5+ {[%emt 0:00:10]} Kf8 {[%emt 0:00:13]} 37. Nxh6 {[%emt 0:00:24]} Ke7 {[%emt 0:00:44]} 38. Ng4 {[%emt 0:00:32]} Re8 {[%emt 0:01:00]} 39. Bg6 {[%emt 0:00:25]} Rc8 {[%emt 0:00:41]} 40. Bd6+ {[%emt 0:01:02]} Kd8 {[%emt 0:00:11]} 41. Nf6 {[%emt 0:00:33]} b5 {[%emt 0:01:27]} 42. a5 {[%emt 0:01:14]} a6 {[%emt 0:01:51]} 43. b4 {[%emt 0:00:31]} Ra8 {[%emt 0:00:31]} 44. Kf3 {[%emt 0:00:22]} Ra7 {[%emt 0:00:29]} 45. Be4 {[%emt 0:00:32]} 1-0

[Event "Kragero Resort International 2022"]
[Site "Kragero"]
[Date "2022.02.25"]
[Round "6.17"]
[White "Reimanis, Ritvars"]
[Black "Altarbosh, Ward"]
[Result "1-0"]
[ECO "D46"]
[WhiteElo "2397"]
[BlackElo "2221"]
[Annotator "ChessBase"]
[PlyCount "171"]
[EventDate "2022.02.23"]
[EventType "swiss"]
[EventCountry "NOR"]
[SourceTitle "playchess.com"]
[Source "ChessBase"]
[SourceQuality "1"]
[TimeControl "5400+30"]

1. d4 {[%emt 0:02:26]} d5 {[%emt 0:00:14]} 2. c4 {[%emt 0:00:04]} c6 {[%emt 0:00:05]} 3. Nf3 {[%emt 0:00:07]} Nf6 {[%emt 0:00:06]} 4. e3 {[%emt 0:00:05]} e6 {[%emt 0:00:04]} 5. Nc3 {[%emt 0:00:19]} Nbd7 {[%emt 0:00:02]} 6. Qc2 {[%emt 0:00:38]} Bd6 {[%emt 0:00:07]} 7. Bd3 {[%emt 0:00:12]} dxc4 {[%emt 0:00:09]} 8. Bxc4 {[%emt 0:00:07]} b5 {[%emt 0:00:03]} 9. Be2 {[%emt 0:01:45]} Bb7 {[%emt 0:00:08]} 10. O-O {[%emt 0:00:22]} O-O {[%emt 0:00:02]} 11. Nd2 {[%emt 0:16:55]} e5 {[%emt 0:00:23]} 12. Bf3 {[%emt 0:00:28]} a6 {[%emt 0:01:25]} 13. Nde4 {[%emt 0:00:39]} Bc7 {[%emt 0:00:09]} 14. Rd1 {[%emt 0:18:14]} Qe7 {[%emt 0:00:32]} 15. Nxf6+ {[%emt 0:05:20]} Nxf6 {[%emt 0:00:31]} 16. Ne4 {[%emt 0:00:31]} Rad8 {[%emt 0:01:53]} 17. Qc5 {[%emt 0:09:24]} Rfe8 {[%emt 0:00:02]} 18. Qxe7 {[%emt 0:01:04]} Rxe7 {[%emt 0:00:01]} 19. Nc5 {[%emt 0:00:37]} Bc8 {[%emt 0:01:10]} 20. Nb3 {[%emt 0:11:57]} e4 {[%emt 0:03:10]} 21. Be2 {[%emt 0:00:19]} Nd5 {[%emt 0:00:43]} 22. Bd2 {[%emt 0:00:25]} Rd6 {[%emt 0:01:20]} 23. Rdc1 {[%emt 0:01:06]} f5 {[%emt 0:00:07]} 24. a4 {[%emt 0:00:40]} Re8 {[%emt 0:07:05]} 25. axb5 {[%emt 0:01:14]} cxb5 {[%emt 0:00:13]} 26. Rc2 {[%emt 0:02:25]} Bb8 {[%emt 0:02:26]} 27. Bd1 {[%emt 0:03:34]} g5 {[%emt 0:02:41]} 28. Na5 {[%emt 0:01:22]} Kg7 {[%emt 0:04:32]} 29. Nc6 {[%emt 0:00:22]} Bb7 {[%emt 0:01:42]} 30. Na5 {[%emt 0:04:01]} Ba8 {[%emt 0:01:36]} 31. Rac1 {[%emt 0:00:16]} f4 {[%emt 0:02:59]} 32. Rc8 {[%emt 0:00:40]} Rdd8 {[%emt 0:00:02]} 33. Rxd8 {[%emt 0:00:37]} Rxd8 {[%emt 0:00:00]} 34. Nc6 {[%emt 0:01:42]} Rc8 {[%emt 0:00:51]} 35. Nxb8 {[%emt 0:00:12]} Rxb8 {[%emt 0:00:00]} 36. Bb3 {[%emt 0:00:10]} f3 {[%emt 0:00:02]} 37. Rc5 {[%emt 0:00:50]} Rd8 {[%emt 0:03:26]} 38. h3 {[%emt 0:00:20]} fxg2 {[%emt 0:00:39]} 39. Kxg2 {[%emt 0:00:15]} h6 {[%emt 0:02:10]} 40. Ba5 {[%emt 0:02:28]} Rd7 {[%emt 0:00:21]} 41. Bd1 {[%emt 0:02:55]} Kg6 {[%emt 0:05:16]} 42. Bg4 {[%emt 0:00:11]} Rd6 {[%emt 0:00:45]} 43. Bc7 {[%emt 0:02:54]} Nxc7 {[%emt 0:02:57]} 44. Rxc7 {[%emt 0:00:02]} Bd5 {[%emt 0:00:45]} 45. Bd7 {[%emt 0:01:05]} b4 {[%emt 0:00:54]} 46. Be8+ {[%emt 0:00:43]} Kf5 {[%emt 0:00:24]} 47. Kg3 {[%emt 0:01:20]} Kf6 {[%emt 0:03:28]} 48. Rh7 {[%emt 0:01:00]} Kf5 {[%emt 0:00:17]} 49. Rc7 {[%emt 0:00:29]} b3 {[%emt 0:02:05]} 50. Ba4 {[%emt 0:00:49]} Rb6 {[%emt 0:01:02]} 51. Rd7 {[%emt 0:03:50]} Ke6 {[%emt 0:00:33]} 52. Rh7 {[%emt 0:00:04]} Kf5 {[%emt 0:00:48]} 53. Rc7 {[%emt 0:00:02]} Rb4 {[%emt 0:01:48]} 54. Bd7+ {[%emt 0:00:28]} Kf6 {[%emt 0:00:36]} 55. Rc5 {[%emt 0:00:02]} Bc4 {[%emt 0:01:16]} 56. Bc6 {[%emt 0:00:46]} Bd3 {[%emt 0:03:37]} 57. Re5 {[%emt 0:01:06]} Rc4 {[%emt 0:05:18]} 58. Bxe4 {[%emt 0:00:19]} Bxe4 {[%emt 0:03:13]} 59. Rxe4 {[%emt 0:00:02]} Rc2 {[%emt 0:00:08]} 60. d5 {[%emt 0:00:04]} Rxb2 {[%emt 0:00:59]} 61. Re6+ {[%emt 0:00:02]} Kf7 {[%emt 0:01:08]} 62. Rxa6 {[%emt 0:00:06]} Rb1 {[%emt 0:00:01]} 63. Rb6 {[%emt 0:00:35]} h5 {[%emt 0:01:25]} 64. Kf3 {[%emt 0:02:34]} b2 {[%emt 0:01:27]} 65. Ke4 {[%emt 0:01:46]} Ke7 {[%emt 0:07:05]} 66. Ke5 {[%emt 0:02:05]} Kd7 {[%emt 0:00:03]} 67. e4 {[%emt 0:00:30]} h4 {[%emt 0:02:04]} 68. f3 {[%emt 0:00:23]} Kc7 {[%emt 0:00:03]} 69. Rc6+ {[%emt 0:01:24]} Kd7 {[%emt 0:01:35]} 70. Rc2 {[%emt 0:00:08]} Ke7 {[%emt 0:03:25]} 71. d6+ {[%emt 0:01:24]} Kd7 {[%emt 0:00:15]} 72. Rc7+ {[%emt 0:00:20]} Kd8 {[%emt 0:00:01]} 73. Rb7 {[%emt 0:00:14]} g4 {[%emt 0:04:36]} 74. fxg4 {[%emt 0:00:16]} Kc8 {[%emt 0:00:01]} 75. Rb3 {[%emt 0:00:41]} Kd7 {[%emt 0:00:11]} 76. Rb6 {[%emt 0:00:20]} Kc8 {[%emt 0:01:18]} 77. Ke6 {[%emt 0:01:16]} Re1 {[%emt 0:00:18]} 78. Rxb2 {[%emt 0:00:34]} Rxe4+ {[%emt 0:00:06]} 79. Kf5 {[%emt 0:00:34]} Re3 {[%emt 0:00:33]} 80. Rh2 {[%emt 0:00:01]} Kd7 {[%emt 0:00:54]} 81. Kg5 {[%emt 0:00:08]} Kxd6 {[%emt 0:00:06]} 82. Kxh4 {[%emt 0:00:06]} Ke6 {[%emt 0:00:32]} 83. Rf2 {[%emt 0:00:05]} Ra3 {[%emt 0:00:24]} 84. g5 {[%emt 0:00:09]} Ra8 {[%emt 0:00:04]} 85. Kg4 {[%emt 0:00:23]} Ke5 {[%emt 0:00:17]} 86. Re2+ {[%emt 0:00:07]} 1-0

[Event "Kragero Resort International 2022"]
[Site "Kragero"]
[Date "2022.02.25"]
[Round "6.18"]
[White "Shehzad, Shazil"]
[Black "Sagafos, Magne"]
[Result "0-1"]
[ECO "B03"]
[WhiteElo "2182"]
[BlackElo "2386"]
[Annotator "ChessBase"]
[PlyCount "120"]
[EventDate "2022.02.23"]
[EventType "swiss"]
[EventCountry "NOR"]
[SourceTitle "playchess.com"]
[Source "ChessBase"]
[SourceQuality "1"]
[TimeControl "5400+30"]

1. e4 {[%emt 0:09:51]} Nf6 {[%emt 0:00:13]} 2. e5 {[%emt 0:02:10]} Nd5 {[%emt 0:00:04]} 3. d4 {[%emt 0:00:17]} d6 {[%emt 0:00:14]} 4. c4 {[%emt 0:00:17]} Nb6 {[%emt 0:00:05]} 5. exd6 {[%emt 0:00:05]} cxd6 {[%emt 0:00:05]} 6. a4 {[%emt 0:06:05]} a5 {[%emt 0:09:14]} 7. Nc3 {[%emt 0:01:46]} g6 {[%emt 0:05:09]} 8. c5 {[%emt 0:00:59]} dxc5 {[%emt 0:00:08]} 9. Bb5+ {[%emt 0:00:26]} N6d7 {[%emt 0:01:12]} 10. Bg5 {[%emt 0:00:50]} Bg7 {[%emt 0:19:36]} 11. Nd5 {[%emt 0:01:10]} f6 {[%emt 0:03:12]} 12. Be3 {[%emt 0:03:12]} cxd4 {[%emt 0:07:44]} 13. Bxd4 {[%emt 0:04:34]} Nc6 {[%emt 0:07:04]} 14. Nf4 {[%emt 0:04:49]} Nde5 {[%emt 0:20:00]} 15. Bxe5 {[%emt 0:02:54]} Qxd1+ {[%emt 0:00:09]} 16. Rxd1 {[%emt 0:00:19]} fxe5 {[%emt 0:00:06]} 17. Nd5 {[%emt 0:00:44]} O-O {[%emt 0:02:10]} 18. Nb6 {[%emt 0:03:46]} Rb8 {[%emt 0:01:02]} 19. Nf3 {[%emt 0:02:07]} Nd4 {[%emt 0:02:07]} 20. Nxd4 {[%emt 0:05:34]} exd4 {[%emt 0:00:04]} 21. Bd7 {[%emt 0:00:12]} Bxd7 {[%emt 0:09:55]} 22. Nxd7 {[%emt 0:00:05]} Rbc8 {[%emt 0:00:06]} 23. Nxf8 {[%emt 0:00:04]} Kxf8 {[%emt 0:00:05]} 24. Ke2 {[%emt 0:02:30]} Rc4 {[%emt 0:01:03]} 25. b3 {[%emt 0:03:02]} Rc3 {[%emt 0:00:41]} 26. Rd3 {[%emt 0:01:50]} Rc2+ {[%emt 0:00:06]} 27. Kf3 {[%emt 0:02:04]} Ke8 {[%emt 0:02:01]} 28. Rb1 {[%emt 0:02:27]} Ra2 {[%emt 0:03:31]} 29. Rbd1 {[%emt 0:02:15]} Rc2 {[%emt 0:00:17]} 30. R1d2 {[%emt 0:02:48]} Rc1 {[%emt 0:00:11]} 31. Rd1 {[%emt 0:02:27]} Rc2 {[%emt 0:00:05]} 32. Rb1 {[%emt 0:00:03]} Ra2 {[%emt 0:00:07]} 33. Rc1 {[%emt 0:00:07]} Kd7 {[%emt 0:01:06]} 34. Rc5 {[%emt 0:01:15]} b6 {[%emt 0:00:09]} 35. Rb5 {[%emt 0:06:00]} Kc6 {[%emt 0:00:12]} 36. h4 {[%emt 0:05:53]} e5 {[%emt 0:06:57]} 37. Rd1 {[%emt 0:00:39]} Rc2 {[%emt 0:00:28]} 38. b4 {[%emt 0:00:52]} axb4 {[%emt 0:00:22]} 39. Rb1 {[%emt 0:01:41]} Bf8 {[%emt 0:00:05]} 40. Rxe5 {[%emt 0:01:03]} Bc5 {[%emt 0:00:39]} 41. h5 {[%emt 0:12:29]} d3 {[%emt 0:01:00]} 42. hxg6 {[%emt 0:00:11]} hxg6 {[%emt 0:00:02]} 43. Rb3 {[%emt 0:01:47]} Rxf2+ {[%emt 0:01:03]} 44. Kg3 {[%emt 0:01:44]} Rd2 {[%emt 0:00:59]} 45. Rg5 {[%emt 0:01:32]} Rd1 {[%emt 0:00:17]} 46. Kg4 {[%emt 0:02:00]} d2 {[%emt 0:00:55]} 47. Rd3 {[%emt 0:00:27]} b3 {[%emt 0:00:43]} 48. Rxg6+ {[%emt 0:00:25]} Kb7 {[%emt 0:00:05]} 49. Rg7+ {[%emt 0:04:23]} Ka6 {[%emt 0:00:06]} 50. Rxb3 {[%emt 0:00:36]} Rg1 {[%emt 0:00:32]} 51. Rd7 {[%emt 0:00:15]} d1=Q+ {[%emt 0:00:17]} 52. Rxd1 {[%emt 0:00:02]} Rxd1 {[%emt 0:00:05]} 53. Kh5 {[%emt 0:00:47]} Ka5 {[%emt 0:00:24]} 54. g4 {[%emt 0:00:16]} Kxa4 {[%emt 0:00:04]} 55. Rb2 {[%emt 0:00:12]} Bd4 {[%emt 0:01:14]} 56. Rg2 {[%emt 0:00:09]} b5 {[%emt 0:00:21]} 57. g5 {[%emt 0:00:02]} Rg1 {[%emt 0:00:11]} 58. Rh2 {[%emt 0:00:20]} b4 {[%emt 0:00:20]} 59. g6 {[%emt 0:00:01]} Bc3 {[%emt 0:00:12]} 60. Rc2 {[%emt 0:01:24]} Kb3 {[%emt 0:00:15]} 0-1

[Event "Kragero Resort International 2022"]
[Site "Kragero"]
[Date "2022.02.25"]
[Round "6.19"]
[White "Melaa, Sondre"]
[Black "Kenneskog, Theodor"]
[Result "0-1"]
[ECO "E05"]
[WhiteElo "2138"]
[BlackElo "2344"]
[Annotator "NA"]
[PlyCount "84"]
[EventDate "2022.02.23"]
[EventType "swiss"]
[EventCountry "NOR"]
[SourceTitle "playchess.com"]
[Source "ChessBase"]
[SourceQuality "1"]
[TimeControl "5400+30"]

1. d4 {[%emt 0:00:04]} Nf6 {[%emt 0:00:05]} 2. c4 {[%emt 0:00:09]} e6 {[%emt 0:00:43]} 3. g3 {[%emt 0:00:12]} d5 {[%emt 0:00:14]} 4. Nf3 {[%emt 0:00:26]} Be7 {[%emt 0:00:27]} 5. Bg2 {[%emt 0:00:10]} O-O {[%emt 0:00:04]} 6. O-O {[%emt 0:00:08]} dxc4 {[%emt 0:00:12]} 7. Na3 {[%emt 0:00:41]} Bxa3 {[%emt 0:15:03]} 8. bxa3 {[%emt 0:00:09]} b5 {[%emt 0:01:38]} 9. a4 {[%emt 0:00:34]} a6 {[%emt 0:03:40]} 10. Ba3 {[%emt 0:01:26]} Re8 {[%emt 0:01:00]} 11. Ne5 {[%emt 0:01:09]} Nd5 {[%emt 0:00:09]} 12. e4 {[%emt 0:00:15]} Nb6 {[%emt 0:01:00]} 13. Qh5 {[%emt 0:08:26]} f6 {[%emt 0:15:14]} 14. a5 {[%emt 0:25:17]} fxe5 {[%emt 0:00:20]} 15. axb6 {[%emt 0:00:11]} cxb6 {[%emt 0:13:28]} 16. dxe5 {[%emt 0:00:34]} Qd7 {[%emt 0:06:01]} 17. f4 {[%emt 0:04:00]} Qf7 {[%emt 0:03:02]} 18. Qe2 {[%emt 0:09:14]} Nd7 {[%emt 0:00:28]} 19. Rad1 {[%emt 0:04:04]} Nc5 {[%emt 0:01:27]} 20. f5 {[%emt 0:02:43]} Bb7 {[%emt 0:17:05]} 21. Bh3 {[%emt 0:07:09]} exf5 {[%emt 0:05:25]} 22. exf5 {[%emt 0:00:22]} Qc7 {[%emt 0:00:59]} 23. e6 {[%emt 0:22:45]} Qc6 {[%emt 0:01:24]} 24. Bxc5 {[%emt 0:00:55]} bxc5 {[%emt 0:01:29]} 25. Bg2 {[%emt 0:01:26]} Qxg2+ {[%emt 0:00:25]} 26. Qxg2 {[%emt 0:00:06]} Bxg2 {[%emt 0:00:03]} 27. Kxg2 {[%emt 0:00:07]} Rad8 {[%emt 0:00:50]} 28. Kf3 {[%emt 0:05:51]} c3 {[%emt 0:02:29]} 29. Ke4 {[%emt 0:02:12]} b4 {[%emt 0:02:26]} 30. g4 {[%emt 0:01:00]} c4 {[%emt 0:06:36]} 31. Rxd8 {[%emt 0:01:01]} Rxd8 {[%emt 0:00:01]} 32. g5 {[%emt 0:00:15]} b3 {[%emt 0:00:47]} 33. f6 {[%emt 0:01:29]} Rb8 {[%emt 0:00:34]} 34. Kd5 {[%emt 0:01:51]} b2 {[%emt 0:01:02]} 35. Kd6 {[%emt 0:01:01]} Rb6+ {[%emt 0:00:54]} 36. Kd7 {[%emt 0:00:35]} Rb7+ {[%emt 0:00:41]} 37. Ke8 {[%emt 0:00:23]} Rb8+ {[%emt 0:00:15]} 38. Ke7 {[%emt 0:00:29]} gxf6 {[%emt 0:00:20]} 39. gxf6 {[%emt 0:00:21]} c2 {[%emt 0:00:46]} 40. f7+ {[%emt 0:00:36]} Kg7 {[%emt 0:00:29]} 41. Rg1+ {[%emt 0:00:41]} Kh6 {[%emt 0:00:11]} 42. Rg8 {[%emt 0:00:32]} b1=Q {[%emt 0:00:18]} 0-1